lending/lending_fUSD_20240824
["ID","MTS","AMOUNT","RATE_DAILY","PERIOD"]
[335797776,1724494277787,-5114.73106488,0.000239,7]
[335797777,1724494277797,-5114.73106488,0.000239,7]
[335797778,1724494277807,-5114.73106488,0.000239,7]
[335797779,1724494277816,-5114.73106488,0.000239,7]
[335797780,1724494277827,-5114.73106488,0.000239,7]
[335797781,1724494277836,-5114.73106488,0.000239,7]
[335797782,1724494277846,-5114.73106488,0.000239,7]
[335797783,1724494277856,-5114.73106488,0.000239,7]
[335797784,1724494277865,-5114.73106488,0.000239,7]
[335797785,1724494277875,-5114.73106488,0.000239,7]
[335797786,1724494277884,-5114.73106488,0.000239,7]
[335797787,1724494277893,-5114.73106488,0.000239,7]
[335797788,1724494277903,-5114.73106488,0.000239,7]
[335797789,1724494277913,-5114.73106488,0.000239,7]
[335797790,1724494277922,-5114.73106488,0.000239,7]
[335797791,1724494277932,-511.2802894,0.00023904,7]
[335797792,1724494277941,-4850.31519003,0.00023904,7]
[335797793,1724494277952,-898.78877362,0.00023904,7]
[335797794,1724494277962,-5114.73106488,0.00023904,7]
[335797795,1724494277971,-1001.2077131,0.00023906,2]
[335797796,1724494277980,-1007.4486758,0.00023906,2]
[335797797,1724494277989,-150.0,0.00023921,10]
[335797798,1724494277998,-150.0,0.00023921,10]
[335797799,1724494278008,-150.0,0.00023921,10]
[335797800,1724494278017,-150.0,0.00023921,10]
[335797801,1724494278026,-150.0,0.00023921,10]
[335797802,1724494278036,-150.0,0.00023921,10]
[335797803,1724494278045,-150.0,0.00023921,10]
[335797804,1724494278055,-150.0,0.00023921,10]
[335797805,1724494278064,-150.0,0.00023921,10]
[335797806,1724494278074,-150.0,0.00023921,10]
[335797807,1724494278084,-150.0,0.00023921,10]
[335797808,1724494278094,-150.0,0.00023921,10]
[335797809,1724494278104,-150.0,0.00023921,10]
[335797810,1724494278113,-150.0,0.00023921,10]
[335797811,1724494278122,-150.0,0.00023921,10]
[335797812,1724494278133,-150.0,0.00023921,10]
[335797813,1724494278142,-150.0,0.00023921,10]
[335797814,1724494278152,-150.0,0.00023921,10]
[335797815,1724494278162,-150.0,0.00023921,10]
[335797816,1724494278171,-197284.82136383,0.00023922,2]
[335797817,1724494278462,-138019.17863617,0.00023922,2]
[335797818,1724494278472,-155.162127,0.00023922,7]
[335797819,1724494278481,-177.847369,0.00023922,7]
[335797820,1724494278491,-195.786485,0.00023922,7]
[335797821,1724494278500,-195.786485,0.00023922,7]
[335797822,1724494278509,-168.295551,0.00023922,7]
[335797823,1724494278519,-168.295551,0.00023922,7]
[335797824,1724494278529,-563.405329,0.00023922,7]
[335797825,1724494278538,-563.405329,0.00023922,7]
[335797826,1724494278548,-455.96806569,0.00023932,2]
[335797827,1724494278558,-4727.41,0.00023945,2]
[335797828,1724494278567,-1500.0,0.00023955,2]
[335797829,1724494278577,-374.6279345,0.00023984,2]
[335797830,1724494278586,-7227.0441519,0.00023984,2]
[335797831,1724494278596,-381.1904821,0.00023984,2]
[335797832,1724494278606,-493.0912011,0.00023984,2]
[335797833,1724494278615,-10241.8000851,0.0002399,2]
[335797834,1724494278625,-2894.07,0.00023992,2]
[335797835,1724494278634,-150.0,0.00023999,10]
[335797836,1724494278643,-150.0,0.00023999,10]
[335797837,1724494278653,-150.0,0.00023999,10]
[335797838,1724494278663,-150.0,0.00023999,10]
[335797839,1724494278675,-150.0,0.00023999,10]
[335797840,1724494278685,-150.0,0.00023999,10]
[335797841,1724494278695,-150.0,0.00023999,10]
[335797842,1724494278705,-150.0,0.00023999,10]
[335797843,1724494278715,-150.0,0.00023999,10]
[335797844,1724494278725,-150.0,0.00023999,10]
[335797845,1724494278734,-150.0,0.00023999,10]
[335797846,1724494278746,-150.0,0.00023999,10]
[335797847,1724494278756,-150.0,0.00023999,10]
[335797848,1724494278765,-150.0,0.00023999,10]
[335797849,1724494278775,-150.0,0.00023999,10]
[335797850,1724494278785,-150.0,0.00023999,10]
[335797851,1724494278794,-150.0,0.00023999,10]
[335797852,1724494278804,-110524.25498921,0.00024,15]
[335797853,1724494278816,-39982.21591552,0.00024,15]
[335797854,1724494278828,-219921.24735327,0.00024,15]
[335797855,1724494278840,-3054.19398321,0.00024,15]
[335797856,1724494278851,-689.10249462,0.00024,15]
[335797857,1724494278863,-6032.55630432,0.00024,15]
[335797858,1724494278875,-5894.4,0.00024,15]
[335797859,1724494278886,-395.62500007,0.00024,15]
[335797860,1724494278897,-694.745,0.00024,15]
[335797861,1724494278909,-1323.72601942,0.00024,15]
[335797862,1724494278920,-2936.22,0.00024,15]
[335797863,1724494278931,-3756.6679994,0.00024,15]
[335797864,1724494278942,-1022.9381003,0.00024,15]
[335797865,1724494278958,-6538.66543029,0.00024,15]
[335797866,1724494278976,-9521.52102756,0.00024,15]
[335797867,1724494278987,-237808.08987569,0.00024,15]
[335797868,1724494278999,-767.9300541,0.00024,15]
[335797869,1724494279010,-644.53,0.00024,15]
[335797870,1724494279021,-3898.14041674,0.00024,15]
[335797871,1724494279032,-302.0,0.00024,15]
[335797872,1724494279048,-744.5,0.00024,15]
[335797873,1724494279059,-353.4100011,0.00024,15]
[335797874,1724494279071,-928565.18798346,0.00024,15]
[335797875,1724494279080,-297.57194842,0.00024,2]
[335797876,1724494279089,-965.16318341,0.00024,2]
[335797877,1724494279099,-401.15380037,0.00024,7]
[335797878,1724494279109,-155.0,0.00024,15]
[335797879,1724494279118,-304093.06638717,0.00024,2]
[335797880,1724494279128,-2480.05819417,0.00024,2]
[335797881,1724494279137,-2874.17590136,0.00024,7]
[335797882,1724494279147,-2404.5148782,0.00024,30]
[335797883,1724494279156,-346210.47567223,0.00024,3]
[335797884,1724494279165,-3000.0,0.00024,30]
[335797885,1724494279175,-11216.76695481,0.00024,21]
[335797886,1724494279184,-2110.0,0.00024,30]
[335797887,1724494279194,-1800.0,0.00024,25]
[335797888,1724494279203,-1000.0,0.00024,2]
[335797889,1724494279212,-1000.0,0.00024,2]
[335797890,1724494279222,-1027.8347,0.00024,2]
[335797891,1724494279231,-60114.93103479,0.00024,6]
[335797892,1724494279240,-1000.0,0.00024,2]
[335797893,1724494279250,-1000.0,0.00024,2]
[335797894,1724494279260,-150.0,0.00024,2]
[335797895,1724494279269,-541.0609,0.00024,2]
[335797896,1724494279278,-29211.76238108,0.00024,3]
[335797897,1724494279289,-673.14206966,0.00024,3]
[335797898,1724494279302,-14606.66820628,0.00024,3]
[335797899,1724494279317,-28853.42073815,0.00024,3]
[335797900,1724494279328,-3878.69,0.00024,3]
[335797901,1724494279338,-5024.77761419,0.00024,3]
[335797902,1724494279499,-267.22567297,0.00024,3]
[335797903,1724494279510,-50518.6417655,0.00024,3]
[335797904,1724494279521,-8515.89,0.00024,3]
[335797905,1724494279532,-21683.09831704,0.00024,3]
[335797906,1724494279541,-389.0,0.00024,2]
[335797907,1724494279550,-5924.0,0.00024,9]
[335797908,1724494279559,-151.0,0.00024,7]
[335797909,1724494279568,-151.0,0.00024,7]
[335797910,1724494279577,-500.0,0.00024,7]
[335797911,1724494279586,-500.0,0.00024,7]
[335797912,1724494279595,-218.009,0.00024,7]
[335797913,1724494279604,-218.009,0.00024,7]
[335797914,1724494279613,-151.80003,0.00024,7]
[335797915,1724494279623,-151.0,0.00024,7]
[335797916,1724494279634,-151.0,0.00024,7]
[335797917,1724494279643,-396.59603616,0.00024,2]
[335797918,1724494279734,-151.0,0.00024,7]
[335797919,1724494279747,-201.719942,0.00024,7]
[335797920,1724494279758,-166.6827,0.00024,7]
[335797921,1724494279769,-166.6827,0.00024,7]
[335797922,1724494279779,-151.0,0.00024,7]
[335797923,1724494279789,-152.719953,0.00024,7]
[335797924,1724494279799,-151.0,0.00024,7]
[335797925,1724494279810,-151.0,0.00024,7]
[335797926,1724494279819,-151.0,0.00024,7]
[335797927,1724494279828,-378.11419,0.00024,7]
[335797928,1724494279838,-402.77632,0.00024,7]
[335797929,1724494279847,-378.11419,0.00024,7]
[335797930,1724494279856,-402.77632,0.00024,7]
[335797931,1724494279865,-217.622638,0.00024,7]
[335797932,1724494279875,-217.622638,0.00024,7]
[335797933,1724494279884,-324.0,0.00024,7]
[335797934,1724494279894,-324.0,0.00024,7]
[335797935,1724494279904,-151.0,0.00024,7]
[335797936,1724494279913,-502.777104,0.00024,7]
[335797937,1724494279923,-151.0,0.00024,7]
[335797938,1724494279932,-502.777104,0.00024,7]
[335797939,1724494279941,-151.0,0.00024,7]
[335797940,1724494279951,-151.0,0.00024,7]
[335797941,1724494279960,-805.849563,0.00024,7]
[335797942,1724494279969,-805.849563,0.00024,7]
[335797943,1724494279979,-2743.83346147,0.0002403,2]
[335797944,1724494279991,-2256.16653853,0.0002403,2]
[335797945,1724494280000,-3058.2919236,0.0002408,2]
[335797946,1724494280010,-5000.0,0.00024093,2]
[335797947,1724494280020,-1223.12016239,0.00024103,2]
[335797948,1724494280032,-2746.17571354,0.00024103,2]
[335797949,1724494280043,-1030.70412407,0.00024103,2]
[335797950,1724494280054,-2708.9968148,0.00024112,2]
[335797951,1724494280066,-1671.41068553,0.00024112,2]
[335797952,1724494280082,-619.59249967,0.00024112,2]
[335797953,1724494280092,-217.56908423,0.00024125,2]
[335797954,1724494280105,-1568.92074396,0.00024125,2]
[335797955,1724494280119,-3213.51017181,0.00024125,2]
[335797956,1724494280130,-150.0,0.0002414,2]
[335797957,1724494280139,-5000.0,0.00024153,2]
[335797958,1724494280149,-511.2802894,0.00024153,7]
[335797959,1724494280160,-4101.53044672,0.00024153,7]
[335797960,1724494280171,-748.78474331,0.00024153,7]
[335797961,1724494280181,-898.78877362,0.00024153,7]
[335797962,1724494280191,-490.3283432,0.00024153,7]
[335797963,1724494280202,-4624.40272168,0.00024153,7]
[335797964,1724494280212,-5000.0,0.00024179,2]
[335797965,1724494280222,-150.0,0.00024181,2]
[335797966,1724494280233,-587.30736243,0.00024182,2]
[335797967,1724494280245,-264.52958626,0.00024182,2]
[335797968,1724494280260,-510.9305077,0.00024182,2]
[335797969,1724494280272,-1378.80283563,0.00024182,2]
[335797970,1724494280284,-873.80203649,0.00024182,2]
[335797971,1724494280296,-1292.12635579,0.00024182,2]
[335797972,1724494280310,-92.5013157,0.00024182,2]
[335797973,1724494280320,-5000.0,0.00024183,2]
[335797974,1724494280329,-500.0,0.00024206,2]
[335797975,1724494280340,-398.35869243,0.0002421,2]
[335797976,1724494280349,-150.0,0.00024225,2]
[335797977,1724494280360,-5000.0,0.00024231,2]
[335797978,1724494280371,-1221.31277183,0.0002425,2]
[335797979,1724494280384,-5000.0,0.00024265,2]
[335797980,1724494280403,-5000.0,0.00024269,2]
[335797981,1724494280418,-5000.0,0.00024281,2]
[335797982,1724494280438,-500.0,0.000243,30]
[335797983,1724494280457,-506.54280572,0.000243,30]
[335797984,1724494280473,-314.84,0.000243,2]
[335797985,1724494280493,-5000.0,0.00024305,2]
[335797986,1724494280508,-150.0,0.00024333,2]
[335797987,1724494280524,-5000.0,0.00024336,2]
[335797988,1724494280543,-5000.0,0.00024352,2]
[335797989,1724494280563,-5000.0,0.00024364,2]
[335797990,1724494280576,-5000.0,0.00024366,2]
[335797991,1724494280594,-150.0,0.00024385,2]
[335797992,1724494280610,-150.0,0.00024392,2]
[335797993,1724494280628,-245.0,0.000244,12]
[335797994,1724494280642,-511.2802894,0.00024402,7]
[335797995,1724494280659,-4850.31519003,0.00024402,7]
[335797996,1724494280677,-898.78877362,0.00024402,7]
[335797997,1724494280692,-5114.73106488,0.00024402,7]
[335797998,1724494280707,-150.0,0.00024419,2]
[335797999,1724494280721,-334.57170356,0.0002442,2]
[335798000,1724494280735,-1091.0,0.00024444,2]
[335798001,1724494280751,-5000.0,0.00024447,2]
[335798002,1724494280766,-150.0,0.00024447,2]
[335798003,1724494280781,-25000.0,0.00024457,2]
[335798004,1724494280797,-5000.0,0.00024471,2]
[335798005,1724494280812,-150.0,0.00024473,2]
[335798006,1724494280823,-800.0,0.0002448,2]
[335798007,1724494280832,-900.0,0.0002448,2]
[335798008,1724494280842,-5000.0,0.00024482,2]
[335798009,1724494280851,-155.0,0.0002449,2]
[335798010,1724494280860,-5000.0,0.00024497,2]
[335798011,1724494280870,-181.15819189,0.00024499,2]
[335798012,1724494280880,-1908.90472175,0.000245,2]
[335798013,1724494280889,-159.46110261,0.000245,2]
[335798014,1724494280899,-13000.0,0.000245,2]
[335798015,1724494280908,-2110.0,0.000245,30]
[335798016,1724494280917,-1000.0,0.000245,2]
[335798017,1724494280927,-1843.36631411,0.000245,2]
[335798018,1724494280937,-189.05605999,0.000245,20]
[335798019,1724494280946,-1000.48,0.000245,2]
[335798020,1724494280956,-150.0,0.00024511,2]
[335798021,1724494280965,-150.0,0.00024525,2]
[335798022,1724494280975,-5000.0,0.00024534,2]
[335798023,1724494280985,-5000.0,0.00024569,2]
[335798024,1724494280995,-150.0,0.00024579,2]
[335798025,1724494281004,-5000.0,0.00024582,2]
[335798026,1724494281014,-151.0,0.00024611,7]
[335798027,1724494281023,-5000.0,0.00024625,2]
[335798028,1724494281033,-195.786485,0.00024625,7]
[335798029,1724494281042,-195.786485,0.00024625,7]
[335798030,1724494281052,-168.295551,0.00024625,7]
[335798031,1724494281061,-168.295551,0.00024625,7]
[335798032,1724494281070,-563.405329,0.00024625,7]
[335798033,1724494281079,-563.405329,0.00024625,7]
[335798034,1724494281089,-150.0,0.00024626,2]
[335798035,1724494281099,-186.5719586,0.0002464,2]
[335798036,1724494281109,-511.2802894,0.00024651,7]
[335798037,1724494281119,-4850.31519003,0.00024651,7]
[335798038,1724494281130,-898.78877362,0.00024651,7]
[335798039,1724494281139,-5114.73106488,0.00024651,7]
[335798040,1724494281149,-5000.0,0.00024652,2]
[335798041,1724494281159,-150.0,0.00024655,2]
[335798042,1724494281171,-500.0,0.00024657,2]
[335798043,1724494281444,-9336.76,0.00024657,6]
[335798044,1724494281461,-2000.0,0.00024657,2]
[335798045,1724494281473,-2000.0,0.00024657,2]
[335798046,1724494281483,-2000.0,0.00024657,2]
[335798047,1724494281492,-2000.0,0.00024657,5]
[335798048,1724494281502,-2000.0,0.00024657,5]
[335798049,1724494281511,-2000.0,0.00024657,5]
[335798050,1724494281520,-1330.63883446,0.00024657,5]
[335798051,1724494281529,-635.85711856,0.00024657,2]
[335798052,1724494281538,-1000.0,0.00024658,30]
[335798053,1724494281548,-873.183834,0.00024658,7]
[335798054,1724494281557,-873.183834,0.00024658,7]
[335798055,1724494281566,-873.183834,0.00024658,7]
[335798056,1724494281575,-873.183834,0.00024658,7]
[335798057,1724494281584,-873.183834,0.00024658,7]
[335798058,1724494281593,-873.183834,0.00024658,7]
[335798059,1724494281603,-8551.83,0.00024658,4]
[335798060,1724494281612,-245.18,0.00024658,4]
[335798061,1724494281621,-5000.0,0.00024682,2]
[335798062,1724494281631,-9407.27206107,0.00024682,2]
[335798063,1724494281641,-9407.27206105,0.00024682,2]
[335798064,1724494281650,-9407.27206105,0.00024682,2]
[335798065,1724494281661,-5000.0,0.00024684,2]
[335798066,1724494281672,-5000.0,0.00024685,2]
[335798067,1724494281681,-1091.0,0.00024696,2]
[335798068,1724494281691,-5000.0,0.00024699,2]
[335798069,1724494281700,-3378.25217205,0.000247,2]
[335798070,1724494281710,-232.54237082,0.000247,2]
[335798071,1724494281719,-30845.49920982,0.000247,7]
[335798072,1724494281729,-150.0,0.0002472,20]
[335798073,1724494281740,-5000.0,0.00024747,2]
[335798074,1724494281750,-1600.0,0.00024748,31]
[335798075,1724494281760,-3164.28,0.0002475,30]
[335798076,1724494281770,-5000.0,0.00024759,2]
[335798077,1724494281779,-235.72232,0.0002477,7]
[335798078,1724494281788,-151.0,0.0002477,7]
[335798079,1724494281798,-237.95762169,0.0002477,2]
[335798080,1724494281807,-150.0,0.00024771,2]
[335798081,1724494281817,-10000.0,0.000248,10]
[335798082,1724494281827,-400.0,0.000248,20]
[335798083,1724494281837,-1000.0,0.000248,7]
[335798084,1724494281847,-1000.0,0.000248,7]
[335798085,1724494281857,-1000.0,0.000248,7]
[335798086,1724494281869,-1000.0,0.000248,7]
[335798087,1724494281878,-1000.0,0.000248,7]
[335798088,1724494281888,-1000.0,0.000248,7]
[335798089,1724494281899,-1000.0,0.000248,7]
[335798090,1724494281908,-1000.0,0.000248,7]
[335798091,1724494281919,-1000.0,0.000248,7]
[335798092,1724494281929,-712.11,0.000248,7]
[335798093,1724494281938,-1425.11407645,0.000248,20]
[335798094,1724494281948,-150.0,0.00024802,2]
[335798095,1724494281957,-500.0,0.0002485,30]
[335798096,1724494281966,-5000.0,0.00024852,2]
[335798097,1724494281976,-15257.73708814,0.0002487,2]
[335798098,1724494281986,-50000.0,0.0002487,5]
[335798099,1724494281995,-5000.0,0.0002488,32]
[335798100,1724494282005,-5000.0,0.00024888,2]
[335798101,1724494282014,-5000.0,0.00024891,2]
[335798102,1724494282024,-150.0,0.00024891,2]
[335798103,1724494282033,-1875.52816346,0.000249,7]
[335798104,1724494282042,-1000.0,0.000249,7]
[335798105,1724494282052,-1000.0,0.000249,7]
[335798106,1724494282061,-1000.0,0.000249,7]
[335798107,1724494282071,-1000.0,0.000249,7]
[335798108,1724494282080,-1000.0,0.000249,7]
[335798109,1724494282090,-1000.0,0.000249,7]
[335798110,1724494282099,-1000.0,0.000249,7]
[335798111,1724494282108,-1000.0,0.000249,7]
[335798112,1724494282118,-1000.0,0.000249,7]
[335798113,1724494282128,-1000.0,0.000249,7]
[335798114,1724494282140,-1000.0,0.000249,7]
[335798115,1724494282151,-770.91,0.000249,7]
[335798116,1724494282160,-10000.0,0.000249,2]
[335798117,1724494282170,-3000.0,0.000249,2]
[335798118,1724494282181,-245.0,0.000249,13]
[335798119,1724494282190,-162.72061764,0.000249,2]
[335798120,1724494282200,-20151.54199071,0.000249,2]
[335798121,1724494282209,-531.60804943,0.000249,4]
[335798122,1724494282218,-511.78,0.000249,7]
[335798123,1724494282227,-4850.81,0.000249,7]
[335798124,1724494282236,-899.28,0.000249,7]
[335798125,1724494282245,-5115.23,0.000249,7]
[335798126,1724494282255,-523.49898254,0.000249,2]
[335798127,1724494282264,-295.96857258,0.000249,2]
[335798128,1724494282273,-333.18729677,0.000249,2]
[335798129,1724494282282,-436.31,0.00024918,2]
[335798130,1724494282291,-150.0,0.00024936,2]
[335798131,1724494282300,-150.0,0.00024946,2]
[335798132,1724494282309,-1091.0,0.00024948,2]
[335798133,1724494282318,-150.0,0.00024955,2]
[335798134,1724494282327,-5000.0,0.00024969,2]
[335798135,1724494282336,-5000.0,0.00024969,2]
[335798136,1724494282345,-5000.0,0.0002497,2]
[335798137,1724494282354,-2721.5395773,0.00024982,2]
[335798138,1724494282363,-1544.0,0.0002499,2]
[335798139,1724494282372,-1923.0,0.0002499,2]
[335798140,1724494282382,-158.63841446,0.00024999,2]
[335798141,1724494282391,-53793.60263177,0.00024999,2]
[335798142,1724494282400,-151.0,0.00024999,7]
[335798143,1724494282410,-151.0,0.00024999,7]
[335798144,1724494282420,-402.77632,0.00024999,7]
[335798145,1724494282429,-402.77632,0.00024999,7]
[335798146,1724494282438,-324.0,0.00024999,7]
[335798147,1724494282447,-324.0,0.00024999,7]
[335798148,1724494282457,-151.0,0.00024999,7]
[335798149,1724494282465,-502.777104,0.00024999,7]
[335798150,1724494282475,-502.777104,0.00024999,7]
[335798151,1724494282484,-92952.51181596,0.00025,2]
[335798152,1724494282497,-2192.36880359,0.00025,2]
[335798153,1724494282508,-606.13570382,0.00025,2]
[335798154,1724494282519,-1066.44345259,0.00025,2]
[335798155,1724494282529,-315.73738925,0.00025,2]
[335798156,1724494282540,-1078.57073008,0.00025,2]
[335798157,1724494282555,-646.44815476,0.00025,2]
[335798158,1724494282566,-432.87434618,0.00025,2]
[335798159,1724494282578,-330.94424587,0.00025,2]
[335798165,1724494322213,1050.0,0.0001,2]
[335798166,1724494406618,372.56935512,0.0001,2]
[335798167,1724494411276,150.0,0.00024753,120]
[335798168,1724494430349,500.0,0.0001,2]
[335798171,1724494710735,150.0,0.00024019,120]
[335798172,1724494770797,150.0,0.00026202,120]
[335798173,1724494830833,150.0,0.0002612,120]
[335798174,1724494890734,150.0,0.00026891,120]
[335798175,1724494906203,155.0,0.00010009,2]
[335798177,1724495020612,1828.0,0.00027,120]
[335798183,1724495215818,12256.74,0.00027,120]
[335798216,1724495250775,150.0,0.00025704,120]
[335798223,1724495306730,426.77,8.918e-05,2]
[335798255,1724495402276,151.47605466,8.918e-05,2]
[335798256,1724495431323,150.0,0.00025056,120]
[335798261,1724495431921,-3410.50407077,0.00010465,2]
[335798262,1724495431936,-20489.49592923,0.00010465,2]
[335798263,1724495431945,-1258.87903905,0.00010852,2]
[335798264,1724495431955,-457.79957147,0.00010852,2]
[335798265,1724495431964,-150.0,0.00010858,2]
[335798266,1724495431973,-12207.5368,0.00010858,2]
[335798267,1724495431982,-1051.84018982,0.00010858,2]
[335798268,1724495431992,-27107.2203,0.00010859,2]
[335798269,1724495432003,-64762.13287159,0.0001088,2]
[335798270,1724495432014,-2326.8697,0.00010896,2]
[335798271,1724495432023,-299.99,0.00010896,2]
[335798272,1724495432032,-368.36,0.00010897,2]
[335798273,1724495432043,-260.2268,0.000109,2]
[335798275,1724495432052,-150.16,0.00010959,2]
[335798277,1724495432062,-168.79,0.00010959,2]
[335798279,1724495432071,-155.0,0.00010989,2]
[335798281,1724495432082,-16128.15643505,0.00010989,2]
[335798283,1724495432093,-1096.73776496,0.00010989,2]
[335798285,1724495432104,-1238.04,0.00010989,2]
[335798287,1724495432116,-587.0,0.00010989,2]
[335798289,1724495432129,-1610.09445505,0.00010989,2]
[335798292,1724495432140,-535.511,0.00010989,2]
[335798294,1724495432151,-281.86841982,0.00010989,2]
[335798296,1724495432163,-2732.55337506,0.00010989,2]
[335798298,1724495432171,-500.0,0.00010994,2]
[335798300,1724495432180,-500.0,0.00010994,2]
[335798302,1724495432190,-500.0,0.00010994,2]
[335798304,1724495432200,-83238.50154745,0.00010995,2]
[335798306,1724495432211,-746.56164777,0.00010995,2]
[335798308,1724495432222,-984.09450233,0.00010995,2]
[335798310,1724495432234,-2599.99999999,0.00010995,2]
[335798317,1724495437767,-155.05800379,0.0001081,2]
[335798318,1724495437777,-154.97561664,0.00010995,2]
[335798319,1724495437792,-1352.67500002,0.00010995,2]
[335798320,1724495438077,-351.02300115,0.00010995,2]
[335798499,1724495439884,-155.0,0.00010979,2]
[335798501,1724495439893,-145.24292253,0.00010995,2]
[335798515,1724495440055,-228795.93175319,0.00010995,2]
[335798525,1724495440142,-521.1836743,0.00010995,2]
[335798783,1724495442922,-1045.14,0.0001081,2]
[335798793,1724495443008,-2057.28,0.0001081,2]
[335799047,1724495445748,-519.94092033,0.0001081,2]
[335799050,1724495445767,-540.67474369,0.0001081,2]
[335799052,1724495445779,-631.75673598,0.0001081,2]
[335799054,1724495445789,-157.42944402,0.00010995,2]
[335799061,1724495445854,-161196.34709501,0.00010995,2]
[335799063,1724495445866,-929.49487417,0.00010995,2]
[335799065,1724495445877,-768.0,0.00010995,2]
[335799067,1724495445888,-1073.61091901,0.00010995,2]
[335799075,1724495445966,-1647.40367444,0.00010995,2]
[335799084,1724495446056,-305.0,0.00010995,2]
[335800282,1724495491898,150.0,0.00026866,120]
[335800287,1724495550868,150.0,0.00026549,120]
[335800288,1724495670735,150.0,0.00026574,120]
[335800289,1724495731295,150.0,0.00025496,120]
[335800290,1724495849340,451.28,8.225e-05,2]
[335800292,1724495911001,150.0,0.00026133,120]
[335800293,1724495973045,1258.87903905,0.00010009,2]
[335800294,1724496009838,529.035374,9.989e-05,2]
[335800295,1724496030891,150.0,0.00025005,120]
[335800297,1724496101662,1527.65391618,9.94e-05,2]
[335800298,1724496106610,1527.65391618,9.941e-05,2]
[335800299,1724496111616,1527.65391618,9.941e-05,2]
[335800302,1724496125815,1050.0,0.0001,2]
[335800303,1724496150760,150.0,0.00025912,120]
[335800304,1724496182629,531.44,9.961e-05,2]
[335800310,1724496211484,150.0,0.00025361,120]
[335800319,1724496314866,154.02485016,9.888e-05,2]
[335800320,1724496330760,150.0,0.00026609,120]
[335800322,1724496338224,451.45,8.219e-05,2]
[335800324,1724496366587,250.0,9.905e-05,2]
[335800329,1724496438688,400.0,9.896e-05,2]
[335800333,1724496461460,347.122483,9.963e-05,2]
[335800334,1724496511376,150.0,0.00026787,120]
[335800335,1724496516590,1000.0,9.886e-05,2]
[335800336,1724496531710,23900.0,9.901e-05,2]
[335800348,1724496562050,200.0,9.874e-05,2]
[335800351,1724496579564,155.0,0.00010009,2]
[335800352,1724496595647,520.2885343,0.00010009,2]
[335800390,1724496632053,-172.77,0.00010014,2]
[335800392,1724496632063,-228.98838575,0.00010097,2]
[335800394,1724496632072,-1299.66487496,0.00010471,2]
[335800396,1724496632081,-451.45,0.00010472,2]
[335800398,1724496632091,-179.19,0.00010531,2]
[335800400,1724496632101,-477.15433899,0.00010699,2]
[335800402,1724496632110,-192.96907921,0.00010699,2]
[335800403,1724496632119,-76.37264154,0.00010713,2]
[335800404,1724496632131,-227.91631146,0.00010713,2]
[335800405,1724496632140,-300.0,0.00010766,2]
[335800406,1724496632150,-150.0,0.00010767,2]
[335800407,1724496632159,-2523.74,0.00010767,2]
[335800408,1724496632169,-1116.46885534,0.00010767,2]
[335800409,1724496632180,-1430.16114466,0.00010767,2]
[335800410,1724496632190,-150.0,0.00010794,2]
[335800411,1724496632199,-340.3042,0.00010795,2]
[335800412,1724496632209,-290.8323,0.00010795,2]
[335800413,1724496632218,-1843.22362116,0.00010795,2]
[335800415,1724496632399,-1474.32247884,0.00010795,2]
[335800418,1724496632409,-1000.0,0.00010795,2]
[335800419,1724496632419,-1729.318,0.00010795,2]
[335800422,1724496632429,-592.94430501,0.00010795,2]